bitfinex/quotes_ETHUSD_20251011
["timestamp","ask_amount","ask_price","bid_price","bid_amount"]
[1760143278694,0.02908421,3876.6,3874.7,5.7692]
[1760143280011,7.06,3876.5,3874.7,5.7692]
[1760143280182,0.02808421,3876.4,3874.7,6.9992]
[1760143280811,0.02808421,3876.4,3874.7,6.30444075]
[1760143282017,0.02808421,3876.4,3874.7,7.53444075]
[1760143283391,0.02808421,3876.4,3874.7,8.76444075]
[1760143283586,7.06,3876.3,3874.7,8.76444075]
[1760143283791,7.06,3876.2,3874.7,8.7586]
[1760143283978,7.061,3876.6,3874.7,8.7586]
[1760143284808,7.06,3876.5,3874.7,8.7586]
[1760143285002,7.06,3876.5,3874.7,9.9886]
[1760143285408,7.06,3876.5,3874.7,9.71287147]
[1760143286532,7.06,3876.5,3874.7,10.94287147]
[1760143287700,7.06,3876.5,3874.7,11.17371747]
[1760143288001,7.06,3876.5,3874.7,12.40371747]
[1760143288398,0.02808421,3876.4,3874.7,12.40371747]
[1760143288636,7.06,3876.3,3874.7,12.40371747]
[1760143288797,0.02808421,3876.2,3874.7,12.40371747]
[1760143288998,7.06,3876.1,3874.7,12.40371747]
[1760143289211,0.02808421,3876.0,3874.7,13.63371747]
[1760143289398,7.06,3876.1,3874.7,13.63371747]
[1760143290101,0.02808421,3876.0,3874.7,13.63371747]
[1760143290303,7.06,3875.9,3874.7,13.63371747]
[1760143290513,7.06,3875.9,3874.7,14.86371747]
[1760143290739,7.06,3875.9,3874.7,14.16311747]
[1760143291334,0.02808421,3875.8,3874.7,14.16311747]
[1760143291720,7.06,3875.7,3874.7,14.16311747]
[1760143291925,0.02808421,3875.6,3874.7,15.39311747]
[1760143293003,7.06,3875.5,3874.7,15.39311747]
[1760143293540,0.02808421,3875.4,3874.7,16.62311747]
[1760143293841,7.5291,3875.3,3874.7,16.62311747]
[1760143294043,0.02808421,3875.2,3874.7,16.39075928]
[1760143294248,0.4691,3875.1,3874.7,16.39075928]
[1760143294413,7.55718421,3875.0,3874.7,16.39075928]
[1760143294611,0.4691,3874.9,3874.7,16.39075928]
[1760143294814,0.4691,3874.9,3874.7,17.62075928]
[1760143295133,7.06,3874.8,3874.7,17.62075928]
[1760143296255,7.06,3874.8,3874.7,18.85075928]
[1760143296843,7.06,3874.8,3874.7,18.15015928]
[1760143297045,7.06,3876.1,3874.7,18.15015928]
[1760143297246,7.08808421,3876.0,3874.7,18.15015928]
[1760143297449,7.06,3876.0,3874.7,19.38015928]
[1760143297744,0.02808421,3875.9,3874.7,18.73015928]
[1760143298117,0.24578421,3875.9,3874.7,18.73015928]
[1760143298315,0.4691,3875.8,3874.7,18.73015928]
[1760143298528,0.02808421,3875.7,3874.7,18.73015928]
[1760143298922,0.02808421,3875.7,3874.7,19.96015928]
[1760143299124,7.06,3875.6,3874.7,19.96015928]
[1760143299529,7.06,3875.6,3874.7,19.83089503]
[1760143299739,1.22517714,3875.6,3874.7,19.18089503]
[1760143300138,1.22517714,3875.6,3874.7,15.4078603]
[1760143300341,7.06,3875.7,3874.7,12.91873565]
[1760143301024,7.06,3875.8,3874.7,12.91873565]
[1760143301439,0.02808421,3875.7,3874.7,12.91873565]
[1760143301623,7.5291,3876.5,3874.7,10.40249904]
[1760143301818,7.5291,3876.5,3874.7,11.63249904]
[1760143302023,0.02808421,3876.4,3874.7,11.63249904]
[1760143302464,0.02808421,3876.4,3874.7,10.38655463]
[1760143302636,0.02808421,3876.4,3874.7,8.21755463]
[1760143303027,7.06,3876.3,3874.7,8.21755463]
[1760143303352,7.06,3876.5,3874.7,9.44755463]
[1760143303539,7.06,3876.5,3874.7,8.2058019]
[1760143303748,7.06,3876.5,3874.7,8.07656531]
[1760143304053,1.92,3874.8,3874.7,8.07656531]
[1760143304251,7.06,3874.8,3874.7,6.85986488]
[1760143304449,0.4691,3878.5,3874.7,6.85986488]
[1760143304450,7.061,3876.6,3874.7,6.85986488]
[1760143304660,7.061,3876.6,3874.7,8.08986488]
[1760143304960,7.06,3876.5,3874.7,8.08986488]
[1760143305762,7.06,3876.5,3874.7,5.92086488]
[1760143305925,1.92,3875.2,3874.7,7.15086488]
[1760143306123,1.92,3875.0,3874.7,7.15086488]
[1760143306321,7.06,3874.9,3874.7,7.15086488]
[1760143307444,7.06,3874.9,3874.7,8.38086488]
[1760143308953,7.06,3874.9,3874.7,9.61086488]
[1760143309626,7.06,3874.8,3874.7,8.96086488]
[1760143310333,7.5005,3876.5,3874.7,8.96086488]
[1760143310547,0.02808421,3876.4,3874.7,10.19086488]
[1760143310752,0.001,3875.9,3874.7,10.19086488]
[1760143311148,0.2322,3875.9,3874.7,10.06164199]
[1760143311349,0.02808421,3875.8,3874.7,10.06164199]
[1760143311671,7.06,3875.7,3874.7,9.41164199]
[1760143311843,0.02808421,3875.6,3874.7,10.64164199]
[1760143312029,0.4405,3875.7,3874.7,10.64164199]
[1760143312469,7.06,3875.6,3874.7,10.64164199]
[1760143313126,7.06,3875.6,3874.7,11.87164199]
[1760143313830,7.06,3875.5,3874.7,11.87164199]
[1760143314568,7.06,3875.4,3874.7,13.10164199]
[1760143315431,7.06,3875.3,3874.7,13.10164199]
[1760143315627,7.06,3875.2,3874.7,13.10164199]
[1760143316060,7.06,3875.1,3874.7,14.33164199]
[1760143316265,7.06,3875.0,3874.7,14.33164199]
[1760143316768,7.06,3874.9,3874.7,14.33164199]
[1760143316976,7.06,3874.8,3874.7,14.33164199]
[1760143317155,6.943097,3874.8,3874.7,13.68164199]
[1760143317357,8.863097,3874.8,3874.7,14.91164199]
[1760143317928,6.943097,3874.8,3874.7,14.91164199]
[1760143318333,8.863097,3874.8,3874.7,14.91164199]
[1760143318767,8.863097,3874.8,3874.7,16.14164199]
[1760143320131,8.863097,3874.8,3874.7,17.37164199]
[1760143321536,6.943097,3874.8,3874.7,18.60164199]
[1760143321736,6.943097,3874.8,3874.7,16.43264199]
[1760143322046,8.863097,3874.8,3874.7,16.43264199]
[1760143322637,6.943097,3874.8,3874.7,16.43264199]
[1760143323134,6.943097,3874.8,3874.7,17.01264199]
[1760143324507,6.943097,3874.8,3874.7,17.58484199]
[1760143325001,6.943097,3874.8,3874.7,17.29290516]
[1760143325474,6.943097,3874.8,3874.7,16.64290516]
[1760143325990,6.943097,3874.8,3874.7,17.87290516]
[1760143326466,0.001,3875.9,3874.7,17.87290516]
[1760143327286,0.001,3875.9,3874.7,19.10290516]
[1760143327796,0.001,3875.9,3874.7,18.45290516]
[1760143328010,0.001,3875.9,3874.7,17.75230516]
[1760143328676,0.001,3875.9,3874.8,0.00584059]
[1760143330611,0.001,3875.9,3874.8,1.23584059]
[1760143331507,6.943097,3875.8,3874.8,1.23584059]
[1760143331708,6.97118121,3875.7,3874.8,0.58584059]
[1760143331910,0.02808421,3875.6,3874.8,1.23]
[1760143332331,7.377897,3875.5,3874.8,1.23]
[1760143332532,0.46288421,3875.4,3874.8,1.23]
[1760143332855,8.19917409,3875.3,3874.8,1.23]
[1760143333137,8.17108988,3875.3,3874.8,1.23]
[1760143333324,0.46288421,3875.2,3874.8,2.46]
[1760143333526,0.02808421,3875.2,3874.8,2.46]
[1760143333746,8.17108988,3875.3,3874.8,2.46]
[1760143334106,8.19485857,3875.2,3874.8,2.46]
[1760143334405,6.943097,3875.1,3874.8,2.46]
[1760143334739,6.97118121,3875.0,3874.8,3.04]
[1760143334943,0.4348,3875.5,3874.8,3.04]
[1760143335306,1.22799288,3875.3,3874.8,1.9031]
[1760143335513,1.20996097,3875.1,3874.8,1.9031]
[1760143335710,1.20758313,3874.9,3874.8,1.9031]
[1760143335919,1.20758313,3874.9,3874.7,18.90614575]
[1760143335920,6.943097,3874.9,3874.7,15.85406886]
[1760143336124,6.893097,3874.9,3874.8,1.23]
[1760143336607,6.893097,3874.9,3874.8,0.58]
[1760143337928,6.893097,3874.9,3874.8,1.81]
[1760143338129,7.327897,3874.9,3874.8,1.81]
[1760143338334,8.53548013,3874.9,3874.8,1.81]
[1760143338720,8.53548013,3874.9,3874.7,15.85406886]
[1760143338721,7.327897,3874.9,3874.7,12.75926476]
[1760143338950,6.893097,3874.9,3874.7,12.75926476]
[1760143339252,0.4348,3874.8,3874.7,12.75926476]
[1760143339453,0.4348,3874.8,3874.7,13.98926476]
[1760143340614,7.327897,3874.8,3874.7,12.45801031]
[1760143341154,8.58756488,3874.8,3874.7,12.45801031]
[1760143341733,8.58756488,3874.8,3874.7,10.93901031]
[1760143342246,7.327897,3874.8,3874.7,9.02389216]
[1760143342760,7.327897,3874.8,3874.7,8.74414216]
[1760143343071,8.58756488,3874.8,3874.7,8.04354216]
[1760143343231,7.327897,3874.8,3874.7,5.44485757]
[1760143343726,7.327897,3874.8,3874.7,6.67485757]
[1760143344339,8.58756488,3874.8,3874.7,6.67485757]
[1760143344653,7.327897,3874.8,3874.7,4.1797385]
[1760143345060,7.327897,3874.8,3874.7,5.4097385]
[1760143345554,7.327897,3874.8,3874.7,4.7597385]
[1760143345755,7.327897,3874.8,3874.7,2.64826651]
[1760143346425,7.327897,3874.8,3874.7,3.87826651]
[1760143346622,8.58756488,3874.8,3874.7,3.87826651]
[1760143347739,7.327897,3874.8,3874.7,0.5676]
[1760143348057,8.32789699,3874.8,3874.7,0.5676]
[1760143348224,7.328897,3874.8,3874.7,0.5676]
[1760143348428,7.328897,3874.8,3874.6,0.26589246]
[1760143348629,0.59168421,3874.7,3874.6,0.26589246]
[1760143348836,7.48478121,3874.7,3874.6,0.26589246]
[1760143349055,7.456697,3874.7,3874.6,0.26589246]
[1760143349238,7.456697,3874.7,3874.6,1.49589246]
[1760143349865,8.67289888,3874.7,3874.6,1.49589246]
[1760143350740,8.67289888,3874.7,3874.6,2.02529246]
[1760143351629,8.67289888,3874.7,3874.6,1.37529246]
[1760143352259,8.67289888,3874.7,3874.6,2.60529246]
[1760143353349,7.456697,3874.7,3874.6,0.11017427]
[1760143353651,7.456697,3874.7,3874.6,1.34017427]
[1760143354933,7.456697,3874.7,3874.6,2.57017427]
[1760143355134,0.1288,3874.6,3874.5,17.21158799]
[1760143355331,1.81602143,3874.6,3874.5,17.21158799]
[1760143355738,7.321397,3874.6,3874.5,17.21158799]
[1760143356374,7.321397,3874.6,3874.5,18.44158799]
[1760143358049,7.321397,3874.6,3874.5,19.67158799]
[1760143358684,7.321397,3874.6,3874.5,18.97098799]
[1760143359479,7.321397,3874.6,3874.5,20.20098799]
[1760143359697,7.321397,3874.6,3874.5,18.08973354]
[1760143360063,6.893097,3874.6,3874.5,18.08973354]
[1760143360884,6.893097,3874.6,3874.5,19.31973354]
[1760143361603,6.893097,3874.6,3874.5,19.75353354]
[1760143362005,6.893097,3874.6,3874.5,19.31973354]
[1760143362302,6.893097,3874.6,3874.5,20.54973354]
[1760143363771,6.893097,3874.6,3874.5,19.89973354]
[1760143363966,6.893097,3874.6,3874.5,21.12973354]
[1760143365169,6.893097,3874.6,3874.5,21.62583088]
[1760143366019,6.893097,3874.6,3874.5,22.05963088]
[1760143366574,6.893097,3874.6,3874.5,22.58903088]
[1760143366774,6.894097,3874.6,3874.5,22.58903088]
[1760143368109,6.894097,3874.6,3874.5,21.65003088]
[1760143368324,6.894097,3874.6,3874.5,21.21623088]
[1760143369626,6.894097,3874.6,3874.5,22.44623088]
[1760143370196,6.894097,3874.6,3874.5,22.88933088]
[1760143370397,6.894097,3874.6,3874.5,22.44623088]
[1760143370722,6.894097,3874.6,3874.5,21.79623088]
[1760143370896,6.894097,3874.6,3874.5,22.23933088]
[1760143371096,6.894097,3874.6,3874.5,23.46933088]
[1760143372534,6.894097,3874.6,3874.5,24.69933088]
[1760143372728,6.894097,3874.6,3874.5,24.04933088]
[1760143372909,6.894097,3874.6,3874.5,23.60623088]
[1760143373093,6.894097,3874.6,3874.5,24.04933088]
[1760143374331,6.894097,3874.6,3874.5,25.27933088]
[1760143374531,6.894097,3874.6,3874.5,25.07673088]
[1760143374739,6.894097,3874.6,3874.5,24.42673088]
[1760143376223,6.894097,3874.6,3874.5,25.65673088]
[1760143377939,6.894097,3874.6,3874.5,26.88673088]
[1760143378848,6.894097,3874.6,3874.5,25.79363088]
[1760143379248,6.894097,3874.6,3874.5,27.02363088]
[1760143380640,6.894097,3874.6,3874.5,27.60363088]
[1760143381044,7.345297,3874.6,3874.5,27.60363088]
[1760143381224,7.345297,3874.6,3874.5,26.11113088]
[1760143381225,6.894097,3874.6,3874.5,26.11113088]
[1760143381433,7.345297,3874.6,3874.5,26.11113088]
[1760143381630,6.894097,3874.6,3874.5,26.11113088]
[1760143382047,7.345297,3874.6,3874.5,27.34113088]
[1760143382236,7.345297,3874.6,3874.5,26.69113088]
[1760143382436,7.345297,3874.6,3874.5,24.57987643]
[1760143383545,7.345297,3874.6,3874.5,23.91787643]
[1760143383853,7.345297,3874.6,3874.5,25.14787643]
[1760143384252,7.345297,3874.6,3874.5,24.49787643]
[1760143384430,7.345297,3874.6,3874.5,22.38662197]
[1760143384625,8.60421843,3874.6,3874.5,22.38662197]
[1760143384820,7.345297,3874.6,3874.5,22.38662197]
[1760143385021,7.345297,3874.6,3874.5,23.61662197]
[1760143386053,7.345297,3874.6,3874.5,22.96662197]
[1760143386359,7.345297,3874.6,3874.5,22.08736751]
[1760143386940,7.345297,3874.6,3874.5,21.42510154]
[1760143387246,8.60421843,3874.6,3874.5,16.2605235]
[1760143387446,7.345297,3874.6,3874.5,14.13167797]
[1760143387631,7.345297,3874.6,3874.5,14.71167797]
[1760143388357,7.345297,3874.6,3874.5,9.95135897]
[1760143388558,7.82421843,3874.6,3874.5,9.95135897]
[1760143388746,7.345297,3874.6,3874.5,9.95135897]
[1760143388946,7.345297,3874.6,3874.5,11.18135897]
[1760143390061,7.362597,3874.6,3874.5,11.18135897]
[1760143390230,7.362597,3874.6,3874.5,11.71075897]
[1760143390428,6.894097,3874.6,3874.5,11.71075897]
[1760143390627,7.362597,3874.6,3874.5,11.71075897]
[1760143391428,6.894097,3874.6,3874.5,11.71075897]
[1760143391636,6.894097,3874.6,3874.5,12.94075897]
[1760143393067,6.894097,3874.6,3874.5,14.17075897]
[1760143393633,7.362597,3874.6,3874.5,13.52075897]
[1760143394370,6.894097,3874.6,3874.5,13.52075897]
[1760143394570,6.894097,3874.6,3874.5,14.75075897]
[1760143395738,6.35811917,3874.6,3874.5,15.19875897]
[1760143395939,6.35811917,3874.6,3874.5,16.42875897]
[1760143396274,6.31032659,3874.6,3874.5,16.42875897]
[1760143397637,6.31032659,3874.6,3874.5,16.95815897]
[1760143398239,6.31032659,3874.6,3874.5,16.51015897]
[1760143399035,6.29475528,3874.6,3874.5,17.74015897]
[1760143399798,6.25550088,3874.6,3874.5,17.74015897]
[1760143400082,8.17550088,3874.6,3874.5,17.74015897]
[1760143400246,6.25550088,3874.6,3874.5,17.74015897]
[1760143400443,6.25550088,3874.6,3874.5,18.97015897]
[1760143400648,6.20150044,3874.6,3874.5,18.97015897]
[1760143401068,8.12150044,3874.6,3874.5,18.97015897]
[1760143401276,6.20150044,3874.6,3874.5,18.97015897]
[1760143402077,8.12150044,3874.6,3874.5,20.20015897]
[1760143403281,6.20050044,3874.6,3874.5,20.20015897]
[1760143403438,6.20050044,3874.6,3874.5,20.78015897]
[1760143403881,6.20050044,3874.6,3874.5,18.66868698]
[1760143404058,6.20050044,3874.6,3874.5,19.66868697]
[1760143404603,6.20050044,3874.6,3874.5,18.14968697]
[1760143404747,6.20050044,3874.6,3874.5,19.81968698]
[1760143405244,8.12050044,3874.6,3874.5,19.81968698]
[1760143405446,8.12050044,3874.6,3874.5,32.91968698]
[1760143405645,8.12050044,3874.6,3874.5,32.26968698]
[1760143405849,8.12050044,3874.6,3874.5,30.15843252]
[1760143406347,8.12050044,3874.6,3874.5,31.38843252]
[1760143407402,8.12050044,3874.6,3874.5,31.76694044]
[1760143407603,6.20050044,3874.6,3874.5,31.76694044]
[1760143408806,6.20050044,3874.6,3874.5,32.99694044]
[1760143409008,6.20050044,3874.6,3874.5,32.57064044]
[1760143410143,6.20050044,3874.6,3874.5,33.80064044]
[1760143410343,6.66900044,3874.6,3874.5,33.80064044]
[1760143411533,6.66900044,3874.6,3874.5,35.03064044]
[1760143412239,6.66900044,3874.6,3874.5,33.61369044]
[1760143412434,6.66900044,3874.6,3874.5,19.07369044]
[1760143412867,6.66900044,3874.6,3874.5,19.60309044]
[1760143413357,0.0609,3874.7,3874.5,19.60309044]
[1760143414967,0.0609,3874.7,3874.5,20.83309044]
[1760143415332,0.0609,3874.6,3874.5,20.83309044]
[1760143416426,0.0609,3874.6,3874.5,22.06309044]
[1760143417890,0.0609,3874.6,3874.5,23.29309044]
[1760143418066,0.0609,3874.6,3874.5,23.06061896]
[1760143419442,0.0609,3874.6,3874.5,24.29061896]
[1760143419778,0.0609,3874.6,3874.5,24.29261896]
[1760143419979,0.001,3874.6,3874.5,24.29261896]
[1760143420138,0.0119,3874.7,3874.5,24.29261896]
[1760143420574,0.0119,3874.6,3874.5,23.64311896]
[1760143420945,0.0119,3874.6,3874.5,24.87311896]
[1760143422180,7.0719,3874.6,3874.5,24.87311896]
[1760143422342,7.0719,3874.6,3874.5,26.10311896]
[1760143423874,7.0719,3874.6,3874.5,27.33311896]
[1760143424677,7.06,3874.6,3874.5,27.33311896]
[1760143425254,7.06,3874.6,3874.5,28.56311896]
[1760143425946,0.001,3875.0,3874.5,28.56311896]
[1760143425947,7.06,3874.9,3874.5,28.56311896]
[1760143426150,7.06,3874.9,3874.7,0.99999999]
[1760143426374,7.06,3874.9,3874.5,28.56311896]
[1760143426680,0.02808421,3874.8,3874.5,29.79311896]
[1760143427248,7.06,3874.7,3874.5,29.79311896]
[1760143427842,0.02808421,3874.6,3874.5,31.02311896]
[1760143428274,0.02808421,3874.6,3874.5,30.32251896]
[1760143428482,7.06,3874.7,3874.5,30.32251896]
[1760143429449,7.06,3874.7,3874.5,31.55251896]
[1760143429849,0.02808421,3874.6,3874.5,31.55251896]
[1760143430050,7.08808421,3874.6,3874.5,31.55251896]
[1760143430368,7.06,3874.6,3874.5,31.55251896]
[1760143431059,7.06,3874.6,3874.5,32.78251896]
[1760143431557,7.061,3875.0,3874.5,32.78251896]
[1760143431760,0.02808421,3874.9,3874.5,32.78251896]
[1760143432352,0.02808421,3874.9,3874.5,34.01251896]
[1760143432651,7.06,3874.8,3874.5,34.01251896]
[1760143432888,0.02808421,3874.7,3874.5,34.01251896]
[1760143433311,7.06,3874.8,3874.5,34.01251896]
[1760143433508,7.06,3874.8,3874.5,33.77996984]
[1760143433685,0.02808421,3874.7,3874.5,33.77996984]
[1760143433889,0.02808421,3874.7,3874.5,35.00996984]
[1760143434281,7.06,3874.6,3874.5,35.00996984]
[1760143435297,7.06,3874.6,3874.5,36.23996984]
[1760143435794,7.06,3874.6,3874.5,35.53936984]
[1760143435996,7.06,3874.9,3874.5,35.53936984]
[1760143436296,0.02808421,3874.8,3874.5,35.53936984]
[1760143436467,7.06,3874.7,3874.5,36.76936984]
[1760143437796,0.02808421,3874.6,3874.5,37.99936984]
[1760143438715,7.06,3874.6,3874.5,37.99936984]
[1760143439102,7.06,3874.6,3874.5,39.22936984]
[1760143440282,7.06,3874.6,3874.5,40.45936984]
[1760143441695,7.06,3874.6,3874.5,41.68936984]
[1760143442991,7.06,3874.6,3874.5,42.91936984]
[1760143443476,7.06,3874.6,3874.5,42.21876984]
[1760143444475,7.06,3874.6,3874.5,43.44876984]
[1760143446712,7.06,3874.6,3874.5,44.67876984]
[1760143448005,7.06,3874.6,3874.5,45.90876984]
[1760143449291,7.06,3874.6,3874.5,47.13876984]
[1760143450702,7.06,3874.6,3874.5,48.36876984]
[1760143451485,7.06,3874.6,3874.5,47.66816984]
[1760143451921,7.06,3874.6,3874.5,47.0058363]
[1760143452122,7.06,3874.6,3874.5,48.2358363]
[1760143453403,7.06,3874.6,3874.5,49.4658363]
[1760143453992,7.54359301,3874.6,3874.5,49.4658363]
[1760143454193,7.06,3874.6,3874.5,49.4658363]
[1760143454596,7.54359301,3874.6,3874.5,49.4658363]
[1760143454827,7.54359301,3874.6,3874.5,50.6958363]
[1760143455128,7.54459301,3874.6,3874.5,50.6958363]
[1760143455347,7.061,3874.6,3874.5,50.6958363]
[1760143455492,7.54459301,3874.6,3874.5,50.6958363]
[1760143456093,7.54459301,3874.6,3874.5,51.9258363]
[1760143456393,7.061,3874.6,3874.5,51.9258363]
[1760143456905,7.54459301,3874.6,3874.5,51.9258363]
[1760143457107,7.061,3874.6,3874.5,51.9258363]
[1760143457416,7.54459301,3874.6,3874.5,51.9258363]
[1760143457620,7.54459301,3874.6,3874.5,53.1558363]
[1760143458139,7.061,3874.6,3874.5,53.1558363]
[1760143458938,7.061,3874.6,3874.5,52.4552363]
[1760143459140,7.061,3874.6,3874.5,53.6852363]
[1760143460222,7.061,3874.6,3874.5,53.55617319]
[1760143460554,7.061,3874.6,3874.5,54.78617319]
[1760143460909,7.19688662,3874.6,3874.5,54.51439995]
[1760143461412,7.061,3874.6,3874.5,54.51439995]
[1760143462022,7.19689473,3874.6,3874.5,55.74439995]
[1760143463532,7.19689473,3874.6,3874.5,56.97439995]
[1760143464146,7.061,3874.6,3874.5,56.70260844]
[1760143464930,7.061,3874.6,3874.5,57.93260844]
[1760143465209,7.19688244,3874.6,3874.5,57.93260844]
[1760143465848,7.19688244,3874.6,3874.5,58.93260843]
[1760143466011,7.19688244,3874.6,3874.5,57.93260844]
[1760143466213,7.19688244,3874.6,3874.5,60.16260843]
[1760143466411,7.19688244,3874.6,3874.5,59.16260844]
[1760143466646,7.19688244,3874.6,3874.5,57.78720826]
[1760143466912,7.19688244,3874.6,3874.5,58.51548018]
[1760143467112,7.061,3874.6,3874.5,58.51548018]
[1760143468011,7.19686001,3874.6,3874.5,58.51548018]
[1760143468328,7.19686001,3874.6,3874.5,59.74548018]
[1760143469129,7.19686001,3874.6,3874.5,58.74548019]
[1760143469654,7.19686001,3874.6,3874.5,59.74548018]
[1760143469856,7.19686001,3874.6,3874.5,60.97548018]
[1760143470147,7.061,3874.6,3874.5,59.70374872]
[1760143471054,7.19688568,3874.6,3874.5,59.70374872]
[1760143471248,7.19688568,3874.6,3874.5,60.93374872]
[1760143473021,7.061,3874.6,3874.5,61.89196735]
[1760143474138,7.19691368,3874.6,3874.5,61.89196735]
[1760143474352,7.19691368,3874.6,3874.5,62.42136735]
[1760143475771,7.19691368,3874.6,3874.5,63.65136735]
[1760143475968,7.19691368,3874.6,3874.5,63.51545307]
[1760143476175,7.061,3874.6,3874.5,63.37953879]
[1760143477274,7.19691906,3874.6,3874.5,64.60953879]
[1760143478572,7.19691906,3874.6,3874.5,65.83953879]
[1760143479077,7.061,3874.6,3874.5,65.56770939]
[1760143480163,7.1969137,3874.6,3874.5,65.56770939]
[1760143480374,7.1969137,3874.6,3874.5,66.79770939]
[1760143480572,7.1969137,3874.6,3874.5,66.12245492]
[1760143481235,7.1969137,3874.6,3874.5,65.42185492]
[1760143481444,7.1969137,3874.6,3874.5,66.42185491]
[1760143481987,7.061,3874.6,3874.5,67.38010319]
[1760143482379,7.061,3874.6,3874.5,66.3801032]
[1760143482580,7.061,3874.6,3874.5,67.38010319]
[1760143482878,7.061,3874.6,3874.5,66.3801032]
[1760143483085,7.19689521,3874.6,3874.5,66.3801032]
[1760143483609,7.19689521,3874.6,3874.5,67.6101032]
[1760143484286,7.19689521,3874.6,3874.5,68.61010319]
[1760143484616,7.19689521,3874.6,3874.5,67.6101032]
[1760143484808,7.19689521,3874.6,3874.5,68.61010319]
[1760143485005,7.061,3874.6,3874.5,69.56834809]
[1760143485211,8.28459301,3874.6,3874.5,69.56834809]
[1760143486129,8.42047033,3874.6,3874.5,68.5683481]
[1760143486331,8.42047033,3874.6,3874.5,69.7983481]
[1760143487831,8.42047033,3874.6,3874.5,71.0283481]
[1760143488027,8.42047033,3874.6,3874.5,70.89245708]
[1760143488240,8.42047033,3874.6,3874.5,70.75656606]
[1760143488601,8.42047033,3874.6,3874.5,70.38637639]
[1760143489330,8.42047033,3874.6,3874.5,71.61637639]
[1760143490639,8.42047033,3874.6,3874.5,72.84637639]
[1760143491137,8.42047033,3874.6,3874.5,72.57463649]
[1760143491941,8.42047033,3874.6,3874.5,73.80463649]
[1760143492300,8.42047033,3874.6,3874.5,74.25213649]
[1760143492624,8.42047033,3874.6,3874.5,73.60154067]
[1760143493620,8.42047033,3874.6,3874.5,74.83154067]
[1760143494149,7.19687732,3874.6,3874.5,71.74693122]
[1760143494304,7.19687732,3874.6,3874.5,69.09786667]
[1760143494655,6.28008869,3874.6,3874.5,69.09786667]
[1760143494950,5.13958505,3874.6,3874.5,68.43581727]
[1760143495249,5.28317806,3874.6,3874.5,69.66581727]
[1760143495537,5.13958505,3874.6,3874.5,69.66581727]
[1760143495699,5.28317806,3874.6,3874.5,69.66581727]
[1760143495906,5.13958505,3874.6,3874.5,68.66581728]
[1760143496105,5.13958505,3874.6,3874.5,68.96521727]
[1760143496434,5.28317806,3874.6,3874.5,70.19521727]
[1760143496629,5.13958505,3874.6,3874.5,70.19521727]
[1760143496829,5.28317806,3874.6,3874.5,70.19521727]
[1760143497030,5.13958505,3874.6,3874.5,70.19521727]
[1760143497236,5.13958505,3874.6,3874.5,69.92366574]
[1760143497430,5.28317806,3874.6,3874.5,69.92366574]
[1760143497636,5.13958505,3874.6,3874.5,69.92366574]
[1760143497813,5.13958505,3874.6,3874.5,71.15366574]
[1760143498013,5.28317806,3874.6,3874.5,71.15366574]
[1760143499020,5.28317806,3874.6,3874.5,69.70616575]
[1760143499224,5.28317806,3874.6,3874.5,71.93616574]
[1760143499827,5.28317806,3874.6,3874.5,70.93616575]
[1760143500227,5.28317806,3874.6,3874.5,71.6645059]
[1760143501011,5.28317806,3874.6,3874.5,72.8945059]
[1760143502039,5.28317806,3874.6,3874.5,71.89450591]
[1760143502233,5.28317806,3874.6,3874.5,72.8945059]
[1760143502441,5.28317806,3874.6,3874.5,74.1245059]
[1760143502615,5.28317806,3874.6,3874.5,73.44760998]
[1760143503339,5.28317806,3874.6,3874.5,72.47536616]
[1760143503340,5.13958505,3874.6,3874.5,72.47536616]
[1760143503734,5.28317806,3874.6,3874.5,73.70536616]
[1760143503933,5.25613024,3874.6,3874.5,73.70536616]
[1760143504140,0.23005959,3874.6,3874.5,73.70536616]
[1760143504342,0.001,3874.7,3874.5,74.70536616]
[1760143505356,0.001,3874.7,3874.5,73.93536617]
[1760143505555,0.001,3874.7,3874.6,1.99999999]
[1760143506252,0.001,3874.7,3874.5,73.93536617]
[1760143506452,0.001,3874.7,3874.5,75.02969002]
[1760143506633,0.001,3874.7,3874.6,1.86430615]
[1760143507644,0.001,3874.7,3874.5,75.02969002]
[1760143507944,0.001,3874.7,3874.6,1.86430615]
[1760143508538,0.001,3874.7,3874.5,76.25969002]
[1760143508739,0.001,3874.7,3874.6,1.86430615]
[1760143509040,0.001,3874.7,3874.5,76.25969002]
[1760143509229,7.06,3874.6,3874.5,76.12400464]
[1760143509424,7.06,3874.6,3874.5,77.98831079]
[1760143509625,7.06,3874.6,3874.5,79.21831079]
[1760143510234,7.06,3874.6,3874.5,77.35400464]
[1760143510434,7.061,3874.7,3874.5,79.21831079]
[1760143510647,7.0601,3874.7,3874.5,79.21831079]
[1760143511061,7.0601,3874.7,3874.5,79.74771079]
[1760143512365,7.0601,3874.7,3874.5,77.88340464]
[1760143512542,7.0601,3874.7,3874.5,79.11340464]
[1760143512740,7.0601,3874.7,3874.6,0.86430615]
[1760143513676,0.0001,3874.7,3874.6,0.86430615]
[1760143513893,7.0601,3874.7,3874.6,2.09430615]
[1760143514104,7.0601,3874.7,3874.6,3.09430615]
[1760143515172,7.0601,3874.7,3874.6,4.32430615]
[1760143516778,7.0601,3874.7,3874.6,5.55430615]
[1760143518300,7.0601,3874.7,3874.6,6.78430615]
[1760143518579,0.4425,3883.9,3882.0,0.86030715]
[1760143518761,0.6632,3883.8,3882.6,0.86030715]
[1760143518958,0.49108174,3881.5,3877.0,0.50891825]
[1760143519324,0.49108174,3881.5,3877.3,0.50891825]
[1760143519585,0.49108174,3882.0,3877.7,0.50891825]
[1760143520486,0.49108174,3882.0,3877.8,0.50891825]
[1760143520705,0.49108174,3882.0,3877.9,0.02310477]
[1760143520989,0.49108174,3882.0,3878.0,0.50891825]
[1760143521183,0.49108174,3882.0,3878.1,0.02310357]
[1760143521384,0.49108174,3882.0,3878.0,0.50891825]
[1760143521590,0.4425,3884.0,3878.0,0.50891825]
[1760143521749,0.6632,3884.5,3878.1,0.02308331]
[1760143521957,0.49108174,3883.8,3879.5,0.50891825]
[1760143522156,0.49108174,3883.4,3879.6,0.02307438]
[1760143522368,0.49108174,3883.4,3879.5,1.73891825]
[1760143522583,0.4425,3885.4,3879.5,1.73891825]
[1760143522584,0.4425,3885.4,3879.5,0.10326262]
[1760143522786,7.06,3881.4,3879.5,0.61218087]